bitfinex/quotes_SOLUSD_20250710
["timestamp","ask_amount","ask_price","bid_price","bid_amount"]
[1752181338383,0.75752941,160.68,160.67,134.80468397]
[1752181338784,0.04752941,160.68,160.67,134.80468397]
[1752181339291,0.75752941,160.68,160.67,102.98468397]
[1752181339501,0.75752941,160.68,160.67,134.80468397]
[1752181339700,0.04752941,160.68,160.67,134.80468397]
[1752181341703,0.10752941,160.68,160.67,135.46468397]
[1752181341881,0.10752941,160.68,160.67,134.80468397]
[1752181342589,0.10752941,160.68,160.67,135.45468397]
[1752181343404,0.10752941,160.68,160.67,134.80468397]
[1752181343999,0.10752941,160.68,160.67,135.45468397]
[1752181345082,0.10752941,160.68,160.67,135.59684554]
[1752181346606,0.10752941,160.68,160.67,135.88116868]
[1752181346781,0.10752941,160.68,160.67,129.77684554]
[1752181347108,0.10752941,160.68,160.67,161.55684554]
[1752181348910,0.10752941,160.68,160.67,160.90684554]
[1752181350207,0.10752941,160.68,160.67,161.55684554]
[1752181351212,0.10752941,160.68,160.67,161.84116868]
[1752181351421,0.69,160.74,160.7,16.92684554]
[1752181351588,0.69,160.74,160.72,16.78468397]
[1752181351899,0.69,160.74,160.73,31.78]
[1752181352908,0.69,160.76,160.73,31.78]
[1752181355332,0.69,160.76,160.74,16.78468397]
[1752181355499,1.5861,160.77,160.75,31.78]
[1752181356022,0.69,160.76,160.75,31.78]
[1752181356203,0.69,160.76,160.74,86.09247059]
[1752181358925,0.69,160.76,160.75,31.78]
[1752181359300,0.69,160.76,160.74,86.09247059]
[1752181359799,0.69,160.75,160.74,86.09247059]
[1752181360406,0.69,160.75,160.71,16.78468397]
[1752181360608,0.69,160.75,160.72,31.76]
[1752181361794,9.01275025,160.77,160.73,17.43468397]
[1752181361994,0.69,160.76,160.74,31.76]
[1752181362303,0.69,160.75,160.73,16.78468397]
[1752181362817,6.5597389,160.77,160.72,16.78468397]
[1752181363038,26.0,160.78,160.72,17.43468397]
[1752181363320,26.0,160.78,160.7,86.09247059]
[1752181363321,26.0,160.78,160.73,0.65]
[1752181363716,26.0,160.78,160.74,31.76]
[1752181364031,26.0,160.78,160.75,31.76]
[1752181364224,26.0,160.78,160.73,0.65]
[1752181364401,26.0,160.78,160.73,17.43468397]
[1752181364801,26.32,160.78,160.73,17.43468397]
[1752181366018,0.32,160.78,160.74,32.39]
[1752181366322,0.32,160.77,160.74,31.74]
[1752181366902,0.32,160.76,160.72,86.09247059]
[1752181367323,0.32,160.75,160.73,31.74]
[1752181367626,0.06,160.76,160.72,86.09247059]
[1752181368000,0.38,160.76,160.72,86.74247059]
[1752181369316,0.38,160.76,160.73,31.74]
[1752181370130,0.38,160.76,160.74,31.72]
[1752181370432,0.38,160.76,160.72,86.09247059]
[1752181370733,0.38,160.76,160.72,86.74247059]
[1752181370936,0.38,160.76,160.72,86.09247059]
[1752181372128,0.32,160.75,160.72,86.09247059]
[1752181372336,1.9071,160.75,160.73,31.72]
[1752181372554,1.9071,160.75,160.69,112.95247059]
[1752181372716,0.32,160.74,160.69,112.95247059]
[1752181373111,0.32,160.74,160.69,86.09247059]
[1752181373312,26.32,160.74,160.66,130.48715456]
[1752181373608,0.32,160.73,160.67,0.72]
[1752181374232,0.32,160.73,160.68,16.78468397]
[1752181374434,26.0,160.74,160.69,0.72]
[1752181374737,1.5871,160.75,160.7,31.74]
[1752181374919,6.78630582,160.74,160.7,31.74]
[1752181375124,6.78630582,160.73,160.71,0.72]
[1752181375443,6.78630582,160.73,160.72,31.74]
[1752181375616,6.78630582,160.73,160.71,0.72]
[1752181377936,6.78630582,160.73,160.72,31.72]
[1752181378129,6.78630582,160.73,160.71,0.72]
[1752181378517,1.5871,160.75,160.71,0.72]
[1752181378718,8.68043764,160.75,160.71,0.72]
[1752181379938,7.09333764,160.74,160.68,103.59715456]
[1752181380116,6.77333764,160.73,160.68,103.59715456]
[1752181380317,0.32,160.73,160.69,0.72]
[1752181380720,6.77333764,160.74,160.7,31.72]
[1752181381036,7.09333764,160.74,160.7,32.44]
[1752181381535,33.09333764,160.73,160.68,103.59715456]
[1752181381749,6.77333764,160.72,160.69,0.72]
[1752181381914,6.77333764,160.72,160.69,32.44]
[1752181383133,26.0,160.73,160.7,0.72]
[1752181383314,6.78225716,160.72,160.68,86.81247059]
[1752181383510,6.78225716,160.72,160.69,0.72]
[1752181383711,7.10225716,160.71,160.68,86.09247059]
[1752181383950,7.10225716,160.71,160.66,27.61]
[1752181384132,7.10225716,160.71,160.67,0.72]
[1752181384835,6.78225716,160.71,160.67,0.72]
[1752181385230,6.78225716,160.71,160.68,0.72]
[1752181385431,6.78225716,160.71,160.69,0.72]
[1752181385736,26.0,160.72,160.69,0.72]
[1752181385944,26.0,160.72,160.7,31.76]
[1752181386137,26.0,160.72,160.7,32.48]
[1752181386738,26.0,160.72,160.71,0.72]
[1752181387326,26.0,160.72,160.7,31.76]
[1752181387619,26.0,160.72,160.7,32.48]
[1752181388838,26.0,160.72,160.71,0.72]
[1752181389137,32.76388304,160.72,160.71,0.72]
[1752181389617,32.76388304,160.72,160.7,31.76]
[1752181389817,26.0,160.72,160.7,32.48]
[1752181390037,26.0,160.72,160.7,118.57247059]
[1752181390950,0.32,160.75,160.71,0.72]
[1752181391246,6.76415709,160.74,160.71,86.81247059]
[1752181391425,7.08415709,160.74,160.71,86.09247059]
[1752181391622,26.0,160.73,160.72,0.72]
[1752181391837,6.76415709,160.73,160.72,86.81247059]
[1752181392139,6.76415709,160.75,160.73,16.78468397]
[1752181392342,6.76415709,160.75,160.74,31.76]
[1752181392343,6.76360162,160.75,160.74,31.76]
[1752181392526,26.0,160.75,160.74,32.48]
[1752181392842,6.76360162,160.75,160.74,118.57247059]
[1752181393026,0.06,160.76,160.74,118.57247059]
[1752181393228,0.06,160.76,160.74,117.85247059]
[1752181393435,0.06,160.76,160.75,0.72]
[1752181395643,0.06,160.76,160.74,117.85247059]
[1752181395836,0.06,160.76,160.74,86.09247059]
[1752181396036,0.06,160.76,160.75,32.46]
[1752181396425,0.06,160.76,160.75,49.24468397]
[1752181396630,0.06,160.76,160.75,32.46]
[1752181401032,0.06,160.76,160.75,31.74]
[1752181401753,0.06,160.76,160.75,32.46]
[1752181401955,0.06,160.76,160.75,118.55247059]
[1752181403054,0.06,160.76,160.75,86.09247059]
[1752181403371,0.06,160.76,160.75,117.81247059]
[1752181404451,0.06,160.76,160.75,135.41931613]
[1752181413648,0.06,160.77,160.76,86.17463216]
[1752181413953,0.06,160.77,160.76,86.85463216]
[1752181414588,0.06,160.77,160.76,118.65463216]
[1752181415957,0.06,160.77,160.76,102.81715456]
[1752181416196,0.06,160.77,160.76,134.61715456]
[1752181416357,0.06,160.77,160.76,102.81715456]
[1752181416681,0.06,160.77,160.76,135.29715456]
[1752181420888,0.06,160.77,160.76,86.03247059]
[1752181421386,0.06,160.77,160.76,117.81247059]
[1752181422179,0.06,160.77,160.76,86.03247059]
[1752181422369,0.06,160.77,160.76,117.81247059]
[1752181423065,26.06,160.77,160.76,117.81247059]
[1752181423667,0.06,160.77,160.76,117.81247059]
[1752181423983,26.06,160.77,160.76,118.49247059]
[1752181424312,26.06,160.77,160.76,135.27715456]
[1752181425166,0.06,160.77,160.76,103.49715456]
[1752181425381,0.06,160.77,160.76,135.25715456]
[1752181429603,0.06,160.77,160.76,86.03247059]
[1752181429779,26.06,160.77,160.76,86.03247059]
[1752181429979,26.06,160.77,160.76,117.77247059]
[1752181430384,32.86557815,160.77,160.76,117.77247059]
[1752181431200,0.06,160.77,160.76,117.77247059]
[1752181431512,26.06,160.77,160.76,31.74]
[1752181431678,26.06,160.77,160.75,86.06247059]
[1752181431878,0.06,160.77,160.75,86.06247059]
[1752181432201,26.06,160.77,160.75,86.06247059]
[1752181432699,0.06,160.77,160.75,86.06247059]
[1752181432902,26.38,160.77,160.75,86.06247059]
[1752181433395,0.06,160.77,160.75,86.06247059]
[1752181433597,6.87130163,160.77,160.75,86.06247059]
[1752181434588,0.06,160.77,160.75,86.72247059]
[1752181434904,6.87130163,160.77,160.75,86.72247059]
[1752181435802,6.87130163,160.77,160.76,31.72]
[1752181436098,6.87130163,160.77,160.75,86.72247059]
[1752181437280,6.81130163,160.76,160.75,86.72247059]
[1752181437584,6.81130163,160.76,160.75,118.44247059]
[1752181439681,6.81130163,160.76,160.75,86.72247059]
[1752181439893,6.81130163,160.76,160.75,117.76247059]
[1752181442520,6.81130163,160.76,160.75,118.42247059]
[1752181442799,6.87130163,160.77,160.75,118.42247059]
[1752181442999,26.06,160.77,160.76,0.66]
[1752181443205,32.87130163,160.77,160.76,0.66]
[1752181443408,32.87130163,160.77,160.75,117.76247059]
[1752181443603,0.06,160.77,160.75,118.42247059]
[1752181443907,0.06,160.77,160.76,31.68]
[1752181444291,6.87196661,160.77,160.75,86.72247059]
[1752181444477,0.06,160.77,160.75,86.72247059]
[1752181444904,6.87196661,160.77,160.75,86.72247059]
[1752181445108,0.06,160.77,160.75,86.72247059]
[1752181445408,6.87196661,160.77,160.75,86.72247059]
[1752181445593,0.06,160.77,160.76,31.68]
[1752181445800,6.87196661,160.77,160.76,31.68]
[1752181445996,0.06,160.77,160.75,86.72247059]
[1752181446296,6.87196661,160.77,160.75,86.72247059]
[1752181446496,0.06,160.77,160.75,86.72247059]
[1752181446697,6.87196661,160.77,160.75,86.72247059]
[1752181446895,0.06,160.77,160.75,86.72247059]
[1752181447199,6.87196661,160.77,160.75,86.72247059]
[1752181447383,6.81196661,160.76,160.75,86.72247059]
[1752181447588,0.06,160.77,160.75,118.40247059]
[1752181447786,6.87196661,160.77,160.75,118.40247059]
[1752181448002,0.06,160.77,160.75,118.40247059]
[1752181448310,6.87196661,160.77,160.75,118.40247059]
[1752181448514,0.06,160.77,160.75,118.40247059]
[1752181448688,6.87196661,160.77,160.75,118.40247059]
[1752181448890,0.06,160.77,160.75,118.40247059]
[1752181449101,6.87196661,160.77,160.75,118.40247059]
[1752181449301,6.81196661,160.76,160.75,118.40247059]
[1752181449507,6.81196661,160.76,160.75,86.72247059]
[1752181449691,6.81196661,160.76,160.75,118.38247059]
[1752181455119,6.80757327,160.76,160.75,118.38247059]
[1752181458417,6.80757327,160.76,160.75,118.34247059]
[1752181459499,6.86757327,160.76,160.75,86.72247059]
[1752181459701,6.86757327,160.76,160.75,118.34247059]
[1752181465715,6.86757327,160.76,160.75,135.12715456]
[1752181466323,6.86757327,160.76,160.75,135.26931613]
[1752181466534,0.06,160.76,160.75,135.26931613]
[1752181467944,0.06,160.76,160.75,135.24931613]
[1752181468609,0.06,160.76,160.75,136.79521613]
[1752181468820,0.06,160.76,160.75,143.11281613]
[1752181469922,6.83312782,160.8,160.78,16.78468397]
[1752181470121,26.32,160.86,160.8,16.78468397]
[1752181470328,6.82936149,160.85,160.81,32.29]
[1752181470526,6.82936149,160.84,160.81,32.29]
[1752181470829,6.82936149,160.83,160.81,32.29]
[1752181471027,6.82936149,160.82,160.81,49.07468397]
[1752181471205,6.32936149,160.82,160.81,118.20247059]
[1752181473103,6.32936149,160.82,160.81,85.91247059]
[1752181474124,6.32936149,160.82,160.81,86.60247059]
[1752181474516,6.32936149,160.82,160.81,118.20247059]
[1752181475032,6.32936149,160.82,160.81,134.98715456]
[1752181475221,0.32,160.85,160.81,134.98715456]
[1752181476638,0.32,160.85,160.81,118.20247059]
[1752181478240,0.32,160.85,160.82,0.69]
[1752181479662,0.32,160.85,160.83,31.6]
[1752181479821,26.32,160.86,160.82,0.69]
[1752181480021,26.32,160.86,160.81,85.91247059]
[1752181480022,0.32,160.85,160.81,85.91247059]
[1752181480230,0.32,160.85,160.81,86.60247059]
[1752181480435,26.0,160.86,160.82,0.69]
[1752181480941,26.32,160.86,160.82,0.69]
[1752181482837,26.32,160.86,160.83,31.6]
[1752181483130,26.32,160.86,160.82,0.69]
[1752181483327,6.85715393,160.85,160.83,0.69]
[1752181483543,6.85715393,160.84,160.81,85.94247059]
[1752181483735,6.85715393,160.86,160.81,85.94247059]
[1752181483946,6.85715393,160.85,160.81,85.94247059]
[1752181484158,0.06,160.87,160.82,0.69]
[1752181484159,6.85715393,160.84,160.82,0.69]
[1752181484449,6.85715393,160.85,160.82,0.69]
[1752181484745,6.85715393,160.84,160.83,31.6]
[1752181484935,6.85715393,160.85,160.83,32.29]
[1752181485137,6.85715393,160.84,160.83,31.6]
[1752181485441,6.85715393,160.85,160.83,31.6]
[1752181485746,6.85715393,160.85,160.84,0.69]
[1752181486246,6.85715393,160.85,160.82,86.60247059]
[1752181486656,26.0,160.83,160.82,85.91247059]
[1752181486951,6.85715393,160.83,160.82,86.60247059]
[1752181487128,26.0,160.83,160.82,86.60247059]
[1752181487328,32.85715393,160.83,160.82,86.60247059]
[1752181488047,32.85715393,160.83,160.82,118.18247059]
[1752181488554,26.06,160.87,160.82,118.18247059]
[1752181488752,6.85858219,160.86,160.83,0.69]
[1752181488925,6.85858219,160.85,160.83,0.69]
[1752181489248,6.85858219,160.86,160.83,0.69]
[1752181489549,6.85858219,160.85,160.83,0.69]
[1752181489740,6.85858219,160.86,160.83,0.69]
[1752181489940,26.0,160.83,160.82,86.60247059]
[1752181490442,6.8602041,160.83,160.82,85.91247059]
[1752181490635,26.0,160.82,160.81,85.94247059]
[1752181490836,32.8602041,160.82,160.81,117.52247059]
[1752181491461,6.8602041,160.82,160.81,117.52247059]
[1752181491630,6.8602041,160.84,160.81,118.21247059]
[1752181492821,6.8602041,160.84,160.81,86.63247059]
[1752181493048,6.8602041,160.84,160.82,31.58]
[1752181493237,6.8602041,160.84,160.81,86.63247059]
[1752181494227,6.8602041,160.84,160.82,0.69]
[1752181494429,26.0,160.83,160.82,0.69]
[1752181494745,32.8602041,160.83,160.82,0.69]
[1752181495141,32.8602041,160.83,160.82,32.27]
[1752181496041,32.8602041,160.83,160.82,0.69]
[1752181496359,32.8602041,160.83,160.82,32.27]
[1752181496558,32.8602041,160.83,160.81,86.63247059]
[1752181496856,0.32,160.86,160.81,86.63247059]
[1752181497063,26.0,160.84,160.81,86.63247059]
[1752181497247,6.85377076,160.83,160.81,86.63247059]
[1752181497643,6.85377076,160.84,160.81,86.63247059]
[1752181498434,7.17377076,160.84,160.82,31.58]
[1752181498637,26.0,160.83,160.81,86.63247059]
[1752181498837,7.17377076,160.82,160.81,85.94247059]
[1752181499140,7.17377076,160.82,160.81,0.03]
[1752181499742,6.85377076,160.82,160.81,0.03]
[1752181500060,6.85377076,160.82,160.81,0.72]
[1752181500447,6.85377076,160.82,160.81,0.03]
[1752181500758,6.85377076,160.82,160.81,31.61]
[1752181502062,6.85377076,160.82,160.81,0.03]
[1752181502369,6.85377076,160.82,160.81,31.61]
[1752181502873,26.0,160.79,160.75,0.03]
[1752181503047,6.85377076,160.78,160.75,0.03]
[1752181503238,6.85377076,160.77,160.75,0.72]
[1752181503434,26.32,160.79,160.75,0.72]
[1752181503435,6.85377076,160.78,160.75,0.72]
[1752181503775,26.0,160.76,160.75,0.03]
[1752181503943,7.17377076,160.76,160.75,0.03]
[1752181504270,12.71707267,160.76,160.75,0.03]
[1752181505246,12.71707267,160.76,160.75,31.71]
[1752181505443,13.48127952,160.76,160.75,0.03]
[1752181506052,13.48127952,160.76,160.75,31.71]
[1752181506364,13.76560266,160.76,160.75,31.71]
[1752181507842,13.76560266,160.76,160.75,0.03]
[1752181508151,13.76560266,160.76,160.75,31.71]
[1752181508468,6.9118319,160.76,160.75,31.71]
[1752181508641,30.55028663,160.76,160.75,31.71]
[1752181508951,56.55028663,160.76,160.75,31.71]
[1752181509151,30.55028663,160.76,160.75,31.71]
[1752181509573,30.55028663,160.76,160.75,0.03]
[1752181509742,30.55028663,160.76,160.75,31.71]
[1752181511155,56.55028663,160.76,160.75,31.71]
[1752181511342,30.55028663,160.76,160.75,31.71]
[1752181512164,56.55028663,160.76,160.75,31.71]
[1752181512342,30.55028663,160.76,160.75,31.71]
[1752181514368,30.55028663,160.76,160.75,0.03]
[1752181514558,30.55028663,160.76,160.75,31.71]
[1752181514762,13.76560266,160.76,160.75,31.71]
[1752181515074,6.9118319,160.76,160.75,31.71]
[1752181515255,13.76560266,160.76,160.75,31.71]
[1752181515854,6.85377076,160.76,160.75,31.71]
[1752181516053,0.32,160.78,160.75,31.71]
[1752181516286,26.0,160.76,160.75,32.4]
[1752181516447,6.85377076,160.76,160.75,32.4]
[1752181516652,7.47570477,160.79,160.75,32.4]
[1752181516852,26.0,160.76,160.75,32.4]
[1752181517077,0.14216157,160.78,160.75,32.4]
[1752181517256,26.0,160.76,160.75,31.71]
[1752181517784,26.0,160.77,160.75,32.4]
[1752181517972,26.0,160.77,160.76,0.69]
[1752181518146,32.75641859,160.77,160.76,0.69]
[1752181518852,26.0,160.77,160.76,0.69]
[1752181525000,5.54330191,160.8,160.76,0.69]
[1752181525167,6.85396555,160.84,160.76,0.69]
[1752181525369,26.0,160.81,160.76,86.60247059]
[1752181525566,26.0,160.78,160.77,0.71]
[1752181525772,0.06,160.84,160.77,0.71]
[1752181525975,26.0,160.82,160.78,31.68]
[1752181526178,6.79682853,160.81,160.79,0.71]
[1752181526503,26.0,160.82,160.79,0.71]
[1752181527375,26.0,160.82,160.8,31.66]
[1752181527664,26.0,160.82,160.81,0.71]
[1752181527863,32.79691029,160.82,160.81,0.71]
[1752181528666,32.79691029,160.82,160.81,32.39]
[1752181534519,32.79691029,160.82,160.8,0.71]
[1752181534799,26.32,160.82,160.78,0.71]
[1752181534982,6.83955611,160.81,160.78,0.71]
[1752181535180,6.83955611,160.81,160.77,85.91247059]
[1752181535393,6.83955611,160.81,160.79,0.71]
[1752181535795,6.33955611,160.81,160.79,0.71]
[1752181538309,6.33955611,160.81,160.8,0.71]
[1752181538798,6.33955611,160.81,160.8,32.33]
[1752181540286,26.0,160.82,160.8,32.33]
[1752181540584,26.0,160.82,160.81,0.71]
[1752181542283,26.0,160.82,160.81,32.33]
[1752181547885,32.83862781,160.82,160.79,86.62247059]
[1752181548085,26.0,160.82,160.79,86.62247059]
[1752181548385,26.0,160.82,160.81,0.03]
[1752181548386,26.62181848,160.82,160.81,0.03]
[1752181548585,32.90599418,160.82,160.81,0.03]
[1752181549020,34.13213052,160.82,160.81,0.03]
[1752181549196,39.67543243,160.82,160.81,0.03]
[1752181549695,39.817594,160.82,160.81,0.03]
[1752181550088,39.817594,160.82,160.81,31.65]
[1752181550294,39.817594,160.82,160.81,0.03]
[1752181550626,39.817594,160.82,160.81,31.65]
[1752181551402,0.62189054,160.8,160.75,0.74]
[1752181551624,26.0,160.77,160.75,0.74]
[1752181552132,26.0,160.77,160.75,0.03]
[1752181553017,6.85069139,160.76,160.75,0.03]
[1752181553213,26.32,160.76,160.75,31.65]
[1752181553391,33.17069139,160.76,160.75,31.65]
[1752181553593,33.79273667,160.76,160.75,31.65]
[1752181553789,33.79273667,160.76,160.75,0.03]
[1752181554194,33.79273667,160.76,160.75,31.63]
[1752181554925,33.17069139,160.76,160.75,31.63]
[1752181555096,32.85069139,160.76,160.75,31.63]
[1752181555721,32.85069139,160.76,160.75,32.29]
[1752181555994,7.762,160.85,160.75,32.29]
[1752181555995,0.68182413,160.82,160.75,32.29]
[1752181556209,26.0,160.8,160.76,0.66]
[1752181556409,26.0,160.8,160.75,31.63]
[1752181556410,26.0,160.77,160.75,31.63]
[1752181556792,0.32,160.81,160.75,31.63]
[1752181556793,0.46216157,160.81,160.75,0.03]
[1752181556997,26.0,160.78,160.75,0.03]
[1752181557521,26.0,160.78,160.75,0.69]
[1752181557813,6.80892569,160.77,160.75,0.69]
[1752181558623,6.80892569,160.77,160.76,0.66]
[1752181558818,6.80892569,160.77,160.75,0.03]
[1752181559003,6.80892569,160.77,160.75,0.69]
[1752181559404,6.80892569,160.77,160.76,0.66]
[1752181560026,6.80892569,160.77,160.76,32.32]
[1752181565717,26.0,160.78,160.76,32.32]
[1752181566042,6.80892569,160.77,160.76,32.32]
[1752181566222,26.0,160.77,160.75,0.69]
[1752181566421,6.80892569,160.76,160.75,0.69]
[1752181566733,26.0,160.77,160.75,0.03]
[1752181566930,6.80892569,160.76,160.75,0.03]
[1752181567133,26.0,160.77,160.76,0.66]
[1752181567337,32.80892569,160.77,160.76,0.66]
[1752181567841,32.80892569,160.77,160.76,32.34]
[1752181568035,32.80892569,160.77,160.75,0.03]
[1752181568213,6.80892569,160.76,160.75,0.69]
[1752181568415,26.0,160.76,160.75,0.69]
[1752181568613,32.80892569,160.76,160.75,0.69]
[1752181569636,32.80892569,160.76,160.75,32.37]
[1752181570036,32.80892569,160.76,160.75,32.35]
[1752181574637,7.16873432,160.76,160.75,31.67]
[1752181575042,7.16873432,160.76,160.75,0.03]
[1752181575344,7.16873432,160.76,160.75,31.67]
[1752181576826,6.84873432,160.76,160.75,31.67]
[1752181577043,6.84873432,160.77,160.75,32.33]
[1752181577270,6.84873432,160.76,160.75,32.33]
[1752181577442,6.84873432,160.77,160.75,32.33]
[1752181577746,6.84873432,160.76,160.75,32.33]
[1752181577942,6.84873432,160.77,160.75,32.33]
[1752181578118,26.0,160.76,160.75,31.67]
[1752181578321,32.84873432,160.76,160.75,31.67]
[1752181578843,32.84873432,160.76,160.75,32.33]
[1752181580330,6.81379905,160.76,160.75,32.33]
[1752181580529,6.81379905,160.77,160.75,32.33]
[1752181580853,6.81379905,160.77,160.76,0.66]
[1752181585626,6.81379905,160.77,160.75,31.67]
[1752181585836,6.81379905,160.77,160.75,32.36]
[1752181586036,6.81379905,160.77,160.76,0.69]
[1752181592762,6.81379905,160.77,160.75,0.03]
[1752181592948,6.81379905,160.76,160.75,0.03]
[1752181593139,6.81379905,160.76,160.75,0.72]
[1752181593941,6.81379905,160.76,160.75,32.34]
[1752181602461,6.81379905,160.76,160.75,0.72]
[1752181602776,6.81379905,160.76,160.75,0.03]
[1752181603072,6.81379905,160.76,160.75,32.34]
[1752181606047,6.81379905,160.76,160.75,31.65]
[1752181606568,7.13379905,160.76,160.75,31.65]
[1752181607763,7.13379905,160.76,160.75,0.03]
[1752181608066,6.81379905,160.76,160.75,31.65]
[1752181608558,6.81379905,160.76,160.75,0.03]
[1752181608746,6.81379905,160.76,160.75,31.65]
[1752181609963,6.81379905,160.76,160.75,0.03]
[1752181610163,6.81379905,160.76,160.75,32.34]
[1752181610370,32.81379905,160.76,160.75,32.34]
[1752181611367,32.81379905,160.76,160.75,31.65]
[1752181611769,32.81379905,160.76,160.75,32.34]
[1752181613875,6.81379905,160.76,160.75,32.34]
[1752181616450,6.81379905,160.76,160.75,31.65]
[1752181619858,6.81379905,160.76,160.75,32.31]
[1752181620174,6.81379905,160.76,160.75,31.65]
[1752181621553,6.81379905,160.76,160.75,32.31]
[1752181624663,6.81379905,160.76,160.75,31.65]
[1752181625157,6.81379905,160.76,160.75,32.31]
[1752181625561,6.81379905,160.76,160.75,31.65]
[1752181627565,6.81379905,160.76,160.75,32.31]
[1752181628671,6.81379905,160.76,160.75,31.65]
[1752181633182,26.32,160.78,160.75,31.65]
[1752181633579,6.82344821,160.77,160.75,0.69]
[1752181633786,6.82344821,160.76,160.75,0.03]
[1752181633984,6.82344821,160.76,160.75,31.65]
[1752181634580,6.82344821,160.76,160.75,32.31]
[1752181636707,6.82344821,160.76,160.75,31.65]
[1752181638588,6.82344821,160.76,160.75,32.31]
[1752181641181,6.82344821,160.76,160.75,31.65]
[1752181641698,6.82344821,160.76,160.75,32.31]
[1752181641891,6.82344821,160.76,160.75,31.65]
[1752181645709,6.82344821,160.76,160.75,32.32]
[1752181647594,6.82344821,160.76,160.75,31.65]
[1752181647808,6.82344821,160.76,160.75,32.32]
[1752181656705,4.24344821,160.76,160.75,139.72188397]
[1752181657031,0.06,160.81,160.76,16.78468397]
[1752181657236,0.06,160.81,160.76,106.40672925]
[1752181660019,0.06,160.81,160.77,0.14216157]
[1752181660197,0.06,160.81,160.78,32.2219679]
[1752181660598,0.06,160.81,160.8,24.76198397]
[1752181660814,0.06,160.81,160.8,114.38387451]
[1752181661914,0.06,160.81,160.8,114.52603608]
[1752181663105,0.06,160.81,160.8,146.10603608]
[1752181663300,0.06,160.81,160.8,145.48414554]
[1752181668342,0.06,160.81,160.8,145.34198397]
[1752181669256,0.06,160.81,160.8,172.18198397]
[1752181669928,0.06,160.81,160.8,172.32414554]
[1752181678249,0.06,160.81,160.8,172.60846868]
[1752181678450,0.06,160.82,160.81,106.00900711]
[1752181678649,0.06,160.82,160.81,138.06869741]
[1752181678851,0.06,160.82,160.81,105.86684554]
[1752181679154,0.06,160.82,160.81,137.44684554]
[1752181686074,0.06,160.82,160.81,137.73116868]
[1752181687572,0.06,160.82,160.81,105.72468397]
[1752181687778,0.06,160.82,160.81,120.5]
[1752181687779,0.73,160.82,160.81,120.5]
[1752181688283,0.73,160.82,160.81,137.28468397]
[1752181688284,0.06,160.82,160.81,137.28468397]
[1752181690151,0.06,160.82,160.81,120.5]
[1752181694394,0.73,160.82,160.81,120.5]
[1752181695975,0.73,160.82,160.81,88.94]
[1752181696156,0.73,160.82,160.81,120.5]
[1752181699681,0.73,160.82,160.8,26.84]
[1752181699880,0.73,160.82,160.77,115.92216157]
[1752181700060,0.73,160.82,160.77,115.78]
[1752181700261,7.6101756,160.82,160.78,31.56]
[1752181700555,0.67,160.81,160.78,31.56]
[1752181702181,0.72,160.8,160.78,31.56]
[1752181702883,0.72,160.8,160.77,115.78]
[1752181703089,0.72,160.8,160.78,31.56]
[1752181703266,0.72,160.8,160.79,31.56]
[1752181703960,6.9401756,160.82,160.79,31.56]
[1752181704160,0.06,160.82,160.79,31.56]
[1752181706177,0.78,160.82,160.79,31.56]
[1752181706371,0.72,160.81,160.79,31.56]
[1752181706571,0.78,160.82,160.79,31.56]
[1752181708285,0.06,160.82,160.8,16.92684554]
[1752181708488,0.06,160.82,160.81,31.56]